Cogmind - Beta 16.1 @@@ ROGUE MODE // 2026.03.16 @ 17:42:22 Player: Tottery Result: Destroyed by G-34 Mercenary with Small Laser Performance ------------- Evolutions (1) 500 Regions Visited (3) 600 Robots Destroyed (44) 220 Value Destroyed (909) 909 Prototype IDs (5) 100 Alien Tech Used (0) 0 Bonus (0) 0 TOTAL SCORE: 2329 Bonus ------- None Cogmind --------- Core Integrity 0/400 Matter 22/300 Energy 21/100 System Corruption 0% Temperature Warm (123) Movement Treading (160) Location -9/Materials Parts ------- > --- POWER (1) -------- (None) > --- PROPULSION (3) --- Light Treads > --- UTILITY (3) ------ Medium Storage Unit Visual Processing Unit > --- WEAPON (2) ------- Spread Laser Spread Laser > --- INVENTORY (10) --- Spread Laser Peak State ------------ > --- POWER ------------ Light Ion Engine > --- PROPULSION ------- Hover Unit Improved Hover Unit Improved Flight Unit > --- UTILITY ---------- Improved Heat Sink Visual Processing Unit > --- WEAPON ----------- Mini Grenade Launcher Mini Grenade Launcher > --- INVENTORY -------- Light Ion Engine Rocket Launcher Rocket Launcher Datajack Mining Laser [Rating: 16] Favorites ----------- Power Light Ion Engine Engine Light Ion Engine Propulsion Flight Unit Treads Light Treads Hover Unit Hover Unit Flight Unit Flight Unit Utility Improved Heat Sink Device Improved Heat Sink Storage Medium Storage Unit Processor Visual Processing Unit Weapon Assault Rifle Energy Gun Medium Laser Ballistic Gun Assault Rifle Launcher Mini Grenade Launcher Special Weapon Mining Laser Special Melee Weapon Datajack Build | -11 -10 -10 -9 ------- Run | Yrd Mat Min Mat Slots Evolved 2 | . . . 2 Power . | . . . . Propulsion 1 | . . . 1 Utility 1 | . . . 1 Weapon . | . . . . Parts Attached 50 | 6 14 10 20 Power 3 | 1 1 . 1 Engine 3 | 1 1 . 1 Core . | . . . . Reactor . | . . . . Propulsion 21 | 2 6 5 8 Treads 3 | 2 . . 1 Leg . | . . . . Wheel . | . . . . Hover 5 | . . . 5 Flight 13 | . 6 5 2 Utility 7 | 1 5 . 1 Device 2 | . 2 . . Storage 4 | 1 2 . 1 Processor 1 | . 1 . . Hackware . | . . . . Protection . | . . . . Artifact . | . . . . Weapon 19 | 2 2 5 10 Energy Gun 3 | 1 . . 2 Energy Cannon . | . . . . Ballistic Gun 7 | 1 2 4 . Ballistic Cannon . | . . . . Launcher 7 | . . . 7 Special Weapon 1 | . . . 1 Impact Weapon . | . . . . Slashing Weapon . | . . . . Piercing Weapon . | . . . . Special Melee Weapon 1 | . . 1 . Unidentified Prototypes 1 | . . . 1 Parts Lost 18 | . 1 2 15 Power 2 | . . . 2 Propulsion 8 | . 1 2 5 Utility 1 | . . . 1 Weapon 7 | . . . 7 Highest Loss Streak 8 | . 1 2 8 To Critical Strikes . | . . . . Average Backups 4 | . 3 4 6 Power . | . . 1 . Propulsion . | . . 1 . Utility . | . 1 . . Weapon 2 | . . 1 5 Tool/Special . | . . . . Unused Backups 3 | . 1 . 2 Power . | . . . . Propulsion . | . . . . Utility 1 | . 1 . . Weapon 2 | . . . 2 Tool/Special . | . . . . Average Slot Usage (%) 86 | . 90 99 79 Engine 11 | . 14 14 7 Treads 5 | . 13 . . Hover 9 | . . . 21 Flight 11 | . 14 27 2 Device 9 | . 7 14 8 Storage 8 | . 11 . 8 Processor 7 | . . 14 11 Energy Gun 1 | . 2 . 1 Ballistic Gun 13 | . 25 22 . Launcher 6 | . . . 13 Special Melee Weapon 2 | . . 5 2 Peak Build Rating 16 | 6 10 10 16 Average Rating 9 | 4 7 9 12 On Entrance 6 | . 6 10 10 Avg Prop Armor Cover (%) 4 | . . . 4 Naked Turns . | . . . . Heaviest Build 23 | 14 23 8 16 Greatest Support 40 | 40 40 8 20 Greatest Overweight (x) 4 | 3 3 1 4 Average Overweight (x) . | . . . . Largest Inventory Capacity 10 | 8 10 5 10 Average Capacity 7 | 7 6 5 9 Most Carried 10 | 2 6 5 10 Average Carried 5 | . 3 4 6 Final Capacity 10 | 8 5 5 10 Final Carried 5 | 2 4 5 1 Class Distribution -------------------- 84% | Mutant 15% | Scavenger-Mutant Dominant Class ---------------- Mutant | -10/Materials Mutant | -10/Mines Mutant | -9/Materials Resources | -11 -10 -10 -9 ----------- Run | Yrd Mat Min Mat Matter Collected 1168 | 214 385 153 416 Remotely . | . . . . Salvage Created 871 | . 416 77 378 Parts 86 | . 19 14 53 Haulers Intercepted 1 | . . . 1 Recyclers Shooed . | . . . . Parts Field Recycled . | . . . . Retrieved Matter . | . . . . Parts Self-Destructed . | . . . . Prevented . | . . . . Parts Restored . | . . . . Kills | -11 -10 -10 -9 ------- Run | Yrd Mat Min Mat Combat Hostiles Destroyed 29 | . 9 5 15 Guns 15 | . 9 5 1 AOE 14 | . . . 14 Classes Destroyed 9 | . 5 . 4 Worker 1 | . 1 . . Builder 7 | . . . 7 Tunneler 1 | . . . 1 Hauler 1 | . . . 1 Recycler 2 | . 1 . 1 Watcher 3 | . 1 . 2 Swarmer 14 | . 3 5 6 Grunt 10 | . 6 . 4 Sentry 5 | . . . 5 Best Kill Streak 8 | . 4 3 8 Combat Bots Only 5 | . 3 3 5 Max Kills in Single Turn 3 | . 2 2 3 Gunslinging . | . . . . Exploded 3 | . . . 3 Melee . | . . . . Uniques/NPCs Destroyed . | . . . . Combat | -11 -10 -10 -9 -------- Run | Yrd Mat Min Mat Hostile Shots Fired 167 | . 36 24 107 Missed 58 | . 11 7 40 Hits 109 | . 25 17 67 Projectile 109 | . 25 17 67 Critical Strikes 4 | . . . 4 Damage Taken 1690 | . 292 164 1234 Core 536 | . 88 45 403 Absorbed by Shields . | . . . . Core Remaining (%) 73 | 100 . 46 . Volleys Fired 82 | . 26 12 44 Largest 2 | . 2 2 2 Hottest 130 | . 40 40 130 Shots Fired 132 | . 52 24 56 Gun 85 | . 52 24 9 Cannon . | . . . . Launcher 47 | . . . 47 Special . | . . . . Kinetic 76 | . 52 24 . Thermal 9 | . . . 9 Explosive 47 | . . . 47 Electromagnetic . | . . . . Robot Hit Streak 12 | . 6 4 12 Robot Miss Streak 7 | . 3 2 7 Penetration Max . | . . . . Secondary Targets 1 | . 1 . . Max Gunslinging Chain 1 | . 1 . . Shots Hit Robots 82 | . 33 17 32 Core Hits 76 | . 21 7 48 Critical Kills 1 | . 1 . . Critical Parts Destroyed . | . . . . Critical Strikes 1 | . 1 . . Destroy 1 | . 1 . . Melee Attacks 6 | . . 3 3 Impact . | . . . . Slashing . | . . . . Piercing . | . . . . Sneak Attacks 6 | . . 3 3 Combat Hostiles . | . . . . Follow-up Attacks . | . . . . Damage Inflicted 2486 | . 432 126 1928 Guns 646 | . 432 126 88 Cannons . | . . . . Explosions 1831 | . . . 1831 Melee . | . . . . Ramming 9 | . . . 9 Kinetic 558 | . 432 126 . Thermal 317 | . . . 317 Explosive 1602 | . . . 1602 Electromagnetic . | . . . . Impact . | . . . . Slashing . | . . . . Piercing . | . . . . Highest Corruption . | . . . . Average Corruption . | . . . . Corruption Purged . | . . . . Corruption Blocked . | . . . . Overload Shots . | . . . . Overflow Damage 50 | . . . 50 Projectiles . | . . . . Explosions 50 | . . . 50 Melee . | . . . . Knockbacks . | . . . . Impact . | . . . . Kinetic . | . . . . Secondary . | . . . . Self-Inflicted Damage 295 | . . . 295 Shots 8 | . . . 8 Rammed 1 | . . . 1 Targets Rammed 1 | . . . 1 Kicked . | . . . . Crushed . | . . . . Highest Temperature 372 | . 4 . 372 Average Temperature 97 | . 2 . 110 Received Heat Transfer 501 | . 147 45 309 Effects 3 | . . . 3 Interference 3 | . . . 3 Siege Activations . | . . . . Martial Activations . | . . . . Shielding Activations . | . . . . Robots Disrupted . | . . . . Combat Hostiles . | . . . . Robots Corrupted . | . . . . Combat Hostiles . | . . . . Parts Fried . | . . . . Impact Corruptions . | . . . . Robots Melted . | . . . . Combat Hostiles . | . . . . Parts Melted 1 | . . . 1 Heat Transferred 270 | . . . 270 Parts Sabotaged . | . . . . Parts Stolen . | . . . . Parts Stripped . | . . . . Power Chain Reactions . | . . . . Alert | -11 -10 -10 -9 ------- Run | Yrd Mat Min Mat Maximum Alert Level 1 | . . . 1 Low Security (%) 69 | 100 100 100 29 Level 1 30 | . . . 70 Level 2 . | . . . . Level 3 . | . . . . Level 4 . | . . . . Level 5 . | . . . . High Security . | . . . . Max Security . | . . . . Peak Influence 387 | . 94 93 387 Initial 33 | . . 33 16 Average 121 | . 32 68 231 Influence Increases 1258 | . 237 120 901 Destroy 0b10 Robot/C 580 | . 180 100 300 Destroy 0b10 Robot/NC 75 | . 15 . 60 Destroy Leader 148 | . 42 20 86 Successful Hack 13 | . . . 13 Disable Machine 90 | . . . 90 Destroy Structure 262 | . . . 262 Partial Spotted 60 | . . . 60 Lose Combat Pursuer 30 | . . . 30 Influence Decreases 887 | . 151 163 573 Entered New Map 80 | . . 53 27 Time Decay 477 | . 141 90 246 Lost Part 180 | . 10 20 150 Purge Threat 150 | . . . 150 Squads Dispatched 3 | . 1 . 2 Investigation 1 | . 1 . . Extermination . | . . . . Reinforcement 2 | . . . 2 Assault . | . . . . Garrison . | . . . . Intercept . | . . . . Searches Triggered . | . . . . Construction Impeded 1 | . . . 1 Haulers Reinforced . | . . . . Active Scanning Responses . | . . . . Cargo Convoy Interrupts . | . . . . Stealth | -11 -10 -10 -9 --------- Run | Yrd Mat Min Mat Distress Signals 3 | . . . 3 Communications Jammed . | . . . . Distress Signals . | . . . . Times Spotted 39 | . 10 7 22 Peak Tracking Total 7 | . 3 3 7 Tactical Retreats 1 | . . . 1 Traps | -11 -10 -10 -9 ------- Run | Yrd Mat Min Mat Traps Triggered 1 | . 1 . . Indirectly . | . . . . Trap Hack Attempts . | . . . . Triggered . | . . . . Disarmed . | . . . . Reprogrammed . | . . . . Reused . | . . . . Traps Extracted . | . . . . Installed . | . . . . Triggered . | . . . . Machines | -11 -10 -10 -9 ---------- Run | Yrd Mat Min Mat Machines Disabled 9 | . . . 9 Max in Single Turn 2 | . . . 2 Machines Repaired . | . . . . Machines Dismantled . | . . . . Machines Sabotaged . | . . . . Overloaded Fab Kills . | . . . . Hacking | -11 -10 -10 -9 --------- Run | Yrd Mat Min Mat Machines Accessed 5 | . 1 . 4 Terminals 3 | . 1 . 2 Fabricators . | . . . . Repair Stations . | . . . . Recycling Units 1 | . . . 1 Scanalyzers 1 | . . . 1 Garrison Access . | . . . . Total Hacks 16 | . 1 . 15 Successful 13 | . 1 . 12 Failed 2 | . . . 2 Catastrophic . | . . . . Database Lockouts 1 | . . . 1 Manual . | . . . . Terminals 9 | . 1 . 8 Fabricators . | . . . . Repair Stations . | . . . . Recycling Units 1 | . . . 1 Scanalyzers 6 | . . . 6 Garrison Access . | . . . . Terminal Hacks 8 | . 1 . 7 Record 1 | . . . 1 Prototype ID Bank 2 | . 1 . 1 Terminal Index 1 | . . . 1 Alert Level 2 | . . . 2 Unreport Threat 1 | . . . 1 Hauler Manifests 1 | . . . 1 Fabricator Hacks . | . . . . Repair Station Hacks . | . . . . Recycling Unit Hacks 1 | . . . 1 Report Inventory 1 | . . . 1 Scanalyzer 4 | . . . 4 Insert Component 1 | . . . 1 Analyze 1 | . . . 1 Retrieve Study 2 | . . . 2 Garrison Access Hacks . | . . . . Unauthorized Hacks . | . . . . Terminals . | . . . . Fabricators . | . . . . Repair Stations . | . . . . Recycling Units . | . . . . Scanalyzers . | . . . . Garrison Access . | . . . . Data Cores Recovered . | . . . . Used . | . . . . Hacking Detections 2 | . . . 2 Full Trace Events . | . . . . Feedback Events . | . . . . Feedback Blocked . | . . . . Robot Schematics Acquired . | . . . . Robots Built . | . . . . Authchips . | . . . . Time . | . . . . Total Robot Build Rating . | . . . . Part Schematics Acquired 1 | . . . 1 Parts Built . | . . . . Authchips . | . . . . Time . | . . . . Total Part Build Rating . | . . . . Part Studies Acquired 2 | . . . 2 Parts Repaired . | . . . . Time . | . . . . Parts Recycled . | . . . . Recycled Matter . | . . . . Retrieved Matter . | . . . . Retrieved Components . | . . . . Parts Scanalyzed 1 | . . . 1 Part Schematics Acquired 1 | . . . 1 Parts Damaged . | . . . . Bothacking | -11 -10 -10 -9 ------------ Run | Yrd Mat Min Mat Used RIF Installer . | . . . . Robots Hacked 4 | . . 2 2 Non-combat 3 | . . 1 2 Combat 1 | . . 1 . Robot Hacks Applied 4 | . . 2 2 parse_system 2 | . . 2 . no_distress 2 | . . . 2 Relay Couplers Released . | . . . . Fabnet Peak Effective % . | . . . . Robots Rewired . | . . . . Allies Hacked . | . . . . Hacks Repelled . | . . . . Allies | -11 -10 -10 -9 -------- Run | Yrd Mat Min Mat Total Allies . | . . . . Largest Group . | . . . . Highest-Rated Group . | . . . . Highest-Rated Ally . | . . . . Total Orders . | . . . . Ally Attacks . | . . . . Total Damage . | . . . . Kills . | . . . . Allies Corrupted . | . . . . Allies Melted . | . . . . Intel | -11 -10 -10 -9 ------- Run | Yrd Mat Min Mat Active Infowar (turns) 709 | . 2 183 524 Optics 708 | . 1 183 524 ECM 1 | . 1 . . Robot Analysis Total . | . . . . Derelict Logs Recovered . | . . . . Drone Launches . | . . . . Drone Recoveries . | . . . . Exploration | -11 -10 -10 -9 ------------- Run | Yrd Mat Min Mat Turns Passed 1211 | 84 420 183 524 Spaces Moved 1245 | 47 449 239 510 Core 53 | 14 1 . 38 Treads 128 | 33 90 . 5 Legs . | . . . . Wheels . | . . . . Hover 444 | . . . 444 Flight 620 | . 358 239 23 Fastest Speed 34 | 50 37 37 34 Average Speed 63 | 158 63 37 67 Slowest Speed 250 | 200 200 120 250 Overloaded Moves . | . . . . Propulsion Burnouts . | . . . . Robots Hopped 3 | . 1 2 . Potential Cave-ins . | . . . . Cave-ins Triggered . | . . . . Exploration Rate (%) 33 | 4 56 31 44 Regions Visited 3 Branch Regions 1 Pre-discovered Areas . | . . . . Known Exits Taken . | . . . . Unknown Exits Taken 3 | 1 1 1 . Scrap Searched 1 | . . 1 . Spaces Dug 13 | . . . 13 Terrain Destroyed 314 | . . . 314 Melee . | . . . . Projectile . | . . . . AOE 314 | . . . 314 Terrain Rammed . | . . . . Walls Destroyed . | . . . . Machines Disabled . | . . . . Actions | -11 -10 -10 -9 --------- Run | Yrd Mat Min Mat Total 1524 | 54 534 308 628 Wait 84 | . 22 37 25 Move 1236 | 46 446 234 510 Hop 3 | . 1 2 . Pick Up 22 | 2 11 3 6 Fast Attach 15 | 6 3 . 6 Attach 18 | . 4 2 12 Detach 6 | . 3 . 3 Swap 29 | . 7 10 12 Drop 22 | . 11 5 6 Fire 82 | . 26 12 44 Melee 6 | . . 3 3 Ram 1 | . . . 1 Kick . | . . . . Crush . | . . . . Escape Stasis . | . . . . Rewire . | . . . . Trap . | . . . . Miscellaneous . | . . . . Route ------- -11/Scrapyard -10/Materials -10/Mines -9/Materials (discovered 1 exit: [*Min]) History --------- Turn | Location | Event 13 | -11/Scrapyard | Discovered new exit (range 16) 85 | -11/Scrapyard | Entered Materials 323 | -10/Materials | Build established: Mutant 453 | -10/Materials | Discovered new exit (range 8) 505 | -10/Materials | Entered Mines 527 | -10/Mines | Met a Derelict bent on vengeance 637 | -10/Mines | Discovered new exit (range 12) 665 | -10/Mines | Core integrity fell below 50% 688 | -10/Mines | Entered Materials 688 | -9/Materials | Evolved 2 slots: Propulsion x1, Utility x1 922 | -9/Materials | Central database locked down 937 | -9/Materials | Discovered new exit (range 13) 1082 | -9/Materials | Core integrity fell below 50% 1137 | -9/Materials | Lost 8 parts (1p5n1u1w) 1153 | -9/Materials | Core integrity fell below 20% 1202 | -9/Materials | Lost 4 parts (4w) 1212 | -9/Materials | Destroyed by G-34 Mercenary with Small Laser Last Messages --------------- Rifle. 01167_ Grenade Launcher destroyed. 01167_ Critical hit (Burn: +37). 01168_ Y-45 Defender destroyed. 01169_ K-01 Serf collects debris. 01170_ The unstable cave ceiling collapses. 01171_ Grenade Launcher destroyed. 01176_ Y-45 Defender destroyed. 01179_ K-01 Serf collects debris. 01179_ R-06 Scavenger collects Imp. Ion Engine. 01182_ The unstable cave ceiling collapses. 01182_ K-01 Serf collects debris. 01183_ R-06 Scavenger collects Lgt. Treads. 01183_ Acquired 15 matter. 01190_ The unstable cave ceiling collapses. 01193_ Acquired Lgt. Treads. 01194_ Acquired 15 matter. 01195_ K-01 Serf collects debris. 01196_ The unstable cave ceiling collapses. 01198_ K-01 Serf collects debris. Map ----- +----------------------------------------------------+ | ?????????????????????????????????????????????????? | | ?????????????????????????????????????????????????? | | ?????????????????????????????????????????????????? | | ?????????????????????????????????????????????????? | | ?????????????????????????????????????????????????? | | ???????????????????????????? ????????????????? | | ????????????????????????? ? ????????????????? | | ???????????????????????? ? ????????????????? | | ????????????????????????? ? ????????????????? | | ????????????????????????? ? ????????????????? | | ?????????????????????????? ## k###+####?????????? | | ?????????????????????????? ?????????? | | ??????????????????????????# #% ??????????? | | ??????????????????????????# # ???????????? | | ????????######?????????#### % # ????????????? | | ????? ??# ?????????# # ????????????? | | ????# ??# ??####### ?????????????? | | ????# ??# ?# # #??????????????? | | ????# ??# ?# "# ######???????????? | | ????# ### # T# #???????????? | | ????# # # " ############? | | ????+ # | | ????# + * | | ????# # ! g# k # | | ????# ########; % # ###+###########???? | | ????# #?????# ; @g# #?????????? | | ????# ####### ! # ## """ #?????????? | | ##### # # # """ #?????????? | | # # ""# ; #### """ #?????????? | | ! # # Y"##; ##?# #?????????? | | # # ""##; =%a ##?# """ ##????????? | | # # ## ; ## ##?# """ #????????? | | ] + + #" = #### """ ##????????? | | ##### # # # ## #?????????? | | ####### ## ## # ######?????????? | | # #???????????? | | < # ] #???????????? | | """ """ k % # " #???????????? | | """ """ ## # ## # " #???????????? | | """ """ ######## ##### """ #???????????? | | ## # ##??## """ #???????????? | | ##########???# """ #???????????? | | ##???????????## #???????????? | | !]] #????????????####/######???????????? | | ! #??????????????# #???????????????? | | ] #??????????????# #???????????????? | | #??????????????# #???????????????? | | #????????????? #???????????????? | | # # # #????????????### #???????????????? | | # #??????????????# #???????????????? | +----------------------------------------------------+ Best States ------------- Heat Dissipation 42 Energy Generation 11 Energy Capacity 250 Matter Stores 398 Matter Capacity 500 Sight Range 18 Terrain Scan Density 10 Evasion (%) 63 Recoil Reduction 2 Item Schematics ----------------- Imp. Hover Unit | -9/Materials | Scanalyzed Robot Schematics ------------------ None Fabricated ------------ Nothing Repaired ---------- Nothing Studied --------- Imp. Hover Unit | -9/Materials | Hacked Lgt. Ion Engine | -9/Materials | Hacked Alien Tech Used ----------------- None Achievements -------------- Item+ Resistances Are Futile Challenges ------------ None Game ------ Seed ArcsightArcSuperbattery Manual? 0 Play Time 00:39:44 Cumulative 35.2 hours Start 2026.03.12 @ 17:29:44 End 2026.03.16 @ 17:42:22 Sessions 5 Manual Loads 0 Difficulty Rogue Special Mode None Game No. 39 Rogue 39 Adventurer 0 Explorer 0 Win Type - Total 0 Types 0/0/0/0/0/0/0/0/0/0 Lore% 16 Gallery% 22 Achievement% 15 Wizard Run 0 Options --------- Layout 1 ASCII 0 Keyboard 1 Movement Arrows Keybinds 0 Fullscreen 1 Font 32/SmallcapsGlow Map View 50x35 Zoom Use 0% Tactical HUD 1 Map Filters NONE Filters NONE Steam 1 RUN: a22863e8-c370-471c-b5d4-f052c79f9da6